fUST/lending_fUST_20250831
["ID","MTS","AMOUNT","RATE_DAILY","PERIOD"]
[382301481,1756570246396,-151.023089,0.00019178,2]
[382301482,1756570246406,-151.023089,0.00019178,2]
[382301483,1756570246416,-151.023089,0.00019178,2]
[382301484,1756570246425,-151.023089,0.00019178,2]
[382301485,1756570246435,-480.0,0.00019178,2]
[382301486,1756570246444,-151.023089,0.00019178,2]
[382301487,1756570246454,-151.023089,0.00019178,2]
[382301488,1756570246464,-151.023089,0.00019178,2]
[382301489,1756570246473,-480.0,0.00019178,2]
[382301490,1756570246483,-481.77442234,0.00019178,2]
[382301491,1756570246492,-480.0,0.00019178,2]
[382301492,1756570246502,-1512.89,0.00019178,2]
[382301494,1756570246512,-480.0,0.00019178,2]
[382301496,1756570246521,-480.0,0.00019178,2]
[382301498,1756570246531,-481.40718584,0.00019178,2]
[382301500,1756570246541,-545.96,0.00019178,2]
[382301502,1756570246551,-480.0,0.00019178,2]
[382301504,1756570246560,-480.0,0.00019178,2]
[382301506,1756570246569,-846.13,0.00019178,2]
[382301508,1756570246578,-480.0,0.00019178,2]
[382301510,1756570246587,-480.0,0.00019178,2]
[382301512,1756570246597,-480.0,0.00019178,2]
[382301514,1756570246606,-480.0,0.00019178,2]
[382301516,1756570246616,-151.0,0.00019178,2]
[382301518,1756570246625,-151.0,0.00019178,2]
[382301520,1756570246639,-151.0,0.00019178,2]
[382301522,1756570246648,-480.18283903,0.00019178,2]
[382301524,1756570246658,-480.0,0.00019178,2]
[382301526,1756570246668,-480.0,0.00019178,2]
[382301528,1756570246679,-872.64,0.00019178,2]
[382301530,1756570246689,-480.0,0.00019178,2]
[382301532,1756570246698,-480.0,0.00019178,2]
[382301534,1756570246709,-1366.38,0.00019178,2]
[382301536,1756570246719,-523.37629757,0.00019178,2]
[382301538,1756570246728,-1468.11,0.00019178,2]
[382301540,1756570246738,-480.0,0.00019178,2]
[382301542,1756570246751,-480.0,0.00019178,2]
[382301544,1756570246760,-480.0,0.00019178,2]
[382301547,1756570246769,-480.0,0.00019178,2]
[382301549,1756570246779,-480.0,0.00019178,2]
[382301550,1756570246788,-1662.19,0.00019178,2]
[382301552,1756570246798,-480.0,0.00019178,2]
[382301554,1756570246808,-480.0,0.00019178,2]
[382301557,1756570246817,-1184.03,0.00019178,2]
[382301559,1756570246827,-770.98,0.00019178,2]
[382301561,1756570246836,-492.11,0.00019178,2]
[382301563,1756570246846,-823.43,0.00019178,2]
[382301565,1756570246855,-480.0,0.00019178,2]
[382301567,1756570246865,-480.0,0.00019178,2]
[382301569,1756570246875,-480.0,0.00019178,2]
[382301571,1756570246884,-480.0,0.00019178,2]
[382301573,1756570246894,-480.0,0.00019178,2]
[382301575,1756570246903,-480.0,0.00019178,2]
[382301577,1756570246913,-484.11929599,0.00019178,2]
[382301579,1756570246922,-705.43,0.00019178,2]
[382301581,1756570246931,-480.0,0.00019178,2]
[382301583,1756570246940,-480.0,0.00019178,2]
[382301585,1756570246950,-527.66,0.00019178,2]
[382301587,1756570246960,-518.98237583,0.00019178,2]
[382301589,1756570246969,-480.0,0.00019178,2]
[382301591,1756570246978,-480.0,0.00019178,2]
[382301593,1756570246988,-1000.0,0.00019178,2]
[382301595,1756570246997,-645.39,0.00019178,2]
[382301597,1756570247006,-602.25,0.00019178,2]
[382301599,1756570247015,-801.95,0.00019178,2]
[382301601,1756570247025,-480.0,0.00019178,2]
[382301603,1756570247035,-744.19,0.00019178,2]
[382301605,1756570247044,-480.0,0.00019178,2]
[382301607,1756570247054,-151.0,0.00019178,2]
[382301609,1756570247063,-480.0,0.00019178,2]
[382301611,1756570247073,-568.35133622,0.00019178,2]
[382301613,1756570247082,-3569.01,0.00019178,2]
[382301615,1756570247091,-480.0,0.00019178,2]
[382301617,1756570247101,-480.0,0.00019178,2]
[382301619,1756570247110,-480.0,0.00019178,2]
[382301621,1756570247119,-480.0,0.00019178,2]
[382301623,1756570247129,-2094.31625016,0.00019178,2]
[382301625,1756570247139,-659.6,0.00019178,2]
[382301627,1756570247148,-151.0,0.00019178,2]
[382301629,1756570247158,-151.0,0.00019178,2]
[382301630,1756570247167,-505.48610716,0.00019178,2]
[382301632,1756570247177,-151.0,0.00019178,2]
[382301634,1756570247187,-151.0,0.00019178,2]
[382301637,1756570247197,-480.0,0.00019178,2]
[382301639,1756570247207,-151.0,0.00019178,2]
[382301640,1756570247217,-680.99,0.00019178,2]
[382301642,1756570247226,-169.349124,0.00019178,2]
[382301645,1756570247236,-2021.94442865,0.00019178,2]
[382301647,1756570247246,-480.0,0.00019178,2]
[382301661,1756570247384,-480.0,0.00019178,2]
[382301663,1756570247395,-499.9981671,0.00019178,2]
[382301665,1756570247406,-1556.58,0.00019178,2]
[382301667,1756570247415,-959.03,0.00019178,2]
[382301669,1756570247426,-885.8,0.00019178,2]
[382301671,1756570247436,-1292.76,0.00019178,2]
[382301673,1756570247445,-480.0,0.00019178,2]
[382301675,1756570247455,-480.0,0.00019178,2]
[382301677,1756570247464,-480.0,0.00019178,2]
[382301679,1756570247475,-151.0,0.00019178,2]
[382301680,1756570247484,-151.0,0.00019178,2]
[382301682,1756570247494,-480.0,0.00019178,2]
[382301684,1756570247503,-482.87301772,0.00019178,2]
[382301686,1756570247513,-151.0,0.00019178,2]
[382301689,1756570247523,-299.50428,0.00019178,2]
[382301690,1756570247532,-574.03,0.00019178,2]
[382301693,1756570247543,-151.0,0.00019178,2]
[382301695,1756570247553,-151.0,0.00019178,2]
[382301697,1756570247562,-151.0,0.00019178,2]
[382301698,1756570247572,-1503.28,0.00019178,2]
[382301701,1756570247582,-151.0,0.00019178,2]
[382301703,1756570247592,-151.0,0.00019178,2]
[382301705,1756570247602,-255.288572,0.00019178,2]
[382301706,1756570247611,-153.104665,0.00019178,2]
[382301708,1756570247621,-480.0,0.00019178,2]
[382301710,1756570247633,-485.40736266,0.00019178,2]
[382301712,1756570247643,-480.0,0.00019178,2]
[382301714,1756570247652,-500.0,0.00019178,2]
[382301716,1756570247662,-1112.91,0.00019178,2]
[382301718,1756570247671,-176.110841,0.00019178,2]
[382301720,1756570247682,-176.110841,0.00019178,2]
[382301722,1756570247691,-176.110841,0.00019178,2]
[382301724,1756570247701,-176.110841,0.00019178,2]
[382301726,1756570247711,-480.0,0.00019178,2]
[382301728,1756570247721,-480.0,0.00019178,2]
[382301730,1756570247730,-176.110841,0.00019178,2]
[382301732,1756570247740,-176.110841,0.00019178,2]
[382301734,1756570247749,-176.110841,0.00019178,2]
[382301736,1756570247758,-480.0,0.00019178,2]
[382301738,1756570247767,-719.1,0.00019178,2]
[382301740,1756570247776,-176.110841,0.00019178,2]
[382301742,1756570247786,-480.0,0.00019178,2]
[382301744,1756570247795,-176.110841,0.00019178,2]
[382301747,1756570247805,-1550.29,0.00019178,2]
[382301748,1756570247816,-176.110841,0.00019178,2]
[382301750,1756570247825,-176.110841,0.00019178,2]
[382301753,1756570247835,-176.110841,0.00019178,2]
[382301755,1756570247845,-480.0,0.00019178,2]
[382301757,1756570247855,-176.110841,0.00019178,2]
[382301759,1756570247865,-176.110841,0.00019178,2]
[382301761,1756570247874,-176.110841,0.00019178,2]
[382301763,1756570247884,-480.0,0.00019178,2]
[382301765,1756570247893,-176.110841,0.00019178,2]
[382301767,1756570247903,-1420.01,0.00019178,2]
[382301769,1756570247912,-480.0,0.00019178,2]
[382301771,1756570247922,-703.94,0.00019178,2]
[382301773,1756570247931,-480.0,0.00019178,2]
[382301775,1756570247940,-587.64,0.00019178,2]
[382301777,1756570247950,-416.82454787,0.00019178,2]
[382301779,1756570247959,-480.0,0.00019178,2]
[382301781,1756570247968,-480.0,0.00019178,2]
[382301783,1756570247978,-7460.84,0.00019178,2]
[382301785,1756570247988,-4142.86,0.00019178,2]
[382301787,1756570247997,-151.0,0.00019178,2]
[382301789,1756570248007,-151.0,0.00019178,2]
[382301791,1756570248016,-151.0,0.00019178,2]
[382301793,1756570248026,-261.758372,0.00019178,2]
[382301795,1756570248036,-480.0,0.00019178,2]
[382301797,1756570248046,-480.0,0.00019178,2]
[382301799,1756570248056,-480.0,0.00019178,2]
[382301801,1756570248067,-605.15,0.00019178,2]
[382301803,1756570248077,-480.0,0.00019178,2]
[382301805,1756570248087,-746.98,0.00019178,2]
[382301807,1756570248098,-662.77,0.00019178,2]
[382301809,1756570248108,-480.0,0.00019178,2]
[382301811,1756570248118,-480.0,0.00019178,2]
[382301813,1756570248129,-1544.43,0.00019178,2]
[382301815,1756570248139,-1881.95,0.00019178,2]
[382301817,1756570248148,-1728.43,0.00019178,2]
[382301819,1756570248158,-689.5,0.00019178,2]
[382301821,1756570248170,-552.88,0.00019178,2]
[382301823,1756570248180,-480.0,0.00019178,2]
[382301825,1756570248189,-955.62,0.00019178,2]
[382301826,1756570248199,-480.0,0.00019178,2]
[382301829,1756570248209,-1764.89,0.00019178,2]
[382301830,1756570248218,-1706.11,0.00019178,2]
[382301833,1756570248228,-480.0,0.00019178,2]
[382301835,1756570248237,-672.07043696,0.00019178,2]
[382301837,1756570248248,-630.055808,0.00019178,2]
[382301838,1756570248257,-613.83,0.00019178,2]
[382301840,1756570248267,-630.055808,0.00019178,2]
[382301842,1756570248277,-630.055808,0.00019178,2]
[382301845,1756570248288,-480.0,0.00019178,2]
[382301847,1756570248298,-630.055808,0.00019178,2]
[382301849,1756570248308,-630.055808,0.00019178,2]
[382301851,1756570248318,-480.0,0.00019178,2]
[382301853,1756570248329,-480.0,0.00019178,2]
[382301855,1756570248338,-630.055808,0.00019178,2]
[382301857,1756570248349,-630.055808,0.00019178,2]
[382301859,1756570248359,-2688.28174783,0.00019178,2]
[382301861,1756570248369,-480.0,0.00019178,2]
[382301863,1756570248379,-480.0,0.00019178,2]
[382301865,1756570248390,-2027.75,0.00019178,2]
[382301867,1756570248403,-1392.58,0.00019178,2]
[382301869,1756570248413,-480.0,0.00019178,2]
[382301871,1756570248424,-630.055808,0.00019178,2]
[382301873,1756570248435,-480.0,0.00019178,2]
[382301875,1756570248445,-630.055808,0.00019178,2]
[382301877,1756570248458,-630.055808,0.00019178,2]
[382301879,1756570248470,-1320.49,0.00019178,2]
[382301881,1756570248481,-710.6,0.00019178,2]
[382301883,1756570248491,-630.055808,0.00019178,2]
[382301885,1756570248503,-480.0,0.00019178,2]
[382301887,1756570248514,-480.0,0.00019178,2]
[382301889,1756570248524,-480.0,0.00019178,2]
[382301891,1756570248534,-630.055808,0.00019178,2]
[382301893,1756570248545,-630.055808,0.00019178,2]
[382301895,1756570248557,-547.91,0.00019178,2]
[382301897,1756570248568,-630.055808,0.00019178,2]
[382301899,1756570248578,-630.055808,0.00019178,2]
[382301901,1756570248588,-630.055808,0.00019178,2]
[382301903,1756570248598,-480.0,0.00019178,2]
[382301905,1756570248608,-480.0,0.00019178,2]
[382301908,1756570248618,-480.0,0.00019178,2]
[382301910,1756570248628,-480.0,0.00019178,2]
[382301911,1756570248641,-1645.07,0.00019178,2]
[382301914,1756570248651,-740.25,0.00019178,2]
[382301916,1756570248661,-480.0,0.00019178,2]
[382301918,1756570248671,-1146.62,0.00019178,2]
[382301920,1756570248681,-481.85415728,0.00019178,2]
[382301921,1756570248691,-1959.5,0.00019178,2]
[382301924,1756570248701,-480.0,0.00019178,2]
[382301926,1756570248712,-705.89,0.00019178,2]
[382301928,1756570248723,-1470.89,0.00019178,2]
[382301930,1756570248733,-1782.14,0.00019178,2]
[382301932,1756570248743,-825.94,0.00019178,2]
[382301934,1756570248754,-480.80456747,0.00019178,2]
[382301936,1756570248765,-480.0,0.00019178,2]
[382301938,1756570248775,-8004.78,0.00019178,2]
[382301940,1756570248785,-480.0,0.00019178,2]
[382301942,1756570248796,-1256.19,0.00019178,2]
[382301944,1756570248806,-480.0,0.00019178,2]
[382301946,1756570248817,-560.2,0.00019178,2]
[382301948,1756570248826,-766.05,0.00019178,2]
[382301950,1756570248836,-1548.37,0.00019178,2]
[382301952,1756570248846,-1464.78,0.00019178,2]
[382301954,1756570248855,-600.25,0.00019178,2]
[382301956,1756570248865,-480.0,0.00019178,2]
[382301958,1756570248874,-480.0,0.00019178,2]
[382301960,1756570248885,-1605.42,0.00019178,2]
[382301962,1756570248894,-480.0,0.00019178,2]
[382301964,1756570248905,-829.69,0.00019178,2]
[382301966,1756570248914,-480.96037101,0.00019178,2]
[382301968,1756570248924,-480.0,0.00019178,2]
[382301970,1756570248934,-1737.72,0.00019178,2]
[382301972,1756570248944,-480.0,0.00019178,2]
[382301974,1756570248954,-480.0,0.00019178,2]
[382301976,1756570248964,-151.0,0.00019178,2]
[382301978,1756570248973,-480.0,0.00019178,2]
[382301980,1756570248983,-151.0,0.00019178,2]
[382301982,1756570248993,-480.0,0.00019178,2]
[382301984,1756570249003,-151.0,0.00019178,2]
[382301986,1756570249013,-151.0,0.00019178,2]
[382301988,1756570249022,-151.0,0.00019178,2]
[382301990,1756570249032,-1846.03,0.00019178,2]
[382301992,1756570249042,-521.67,0.00019178,2]
[382301994,1756570249052,-481.21499859,0.00019178,2]
[382301996,1756570249062,-1547.86,0.00019178,2]
[382301998,1756570249071,-480.0,0.00019178,2]
[382302000,1756570249082,-480.0,0.00019178,2]
[382302002,1756570249092,-589.91,0.00019178,2]
[382302004,1756570249101,-1677.8,0.00019178,2]
[382302006,1756570249111,-480.58743605,0.00019178,2]
[382302008,1756570249120,-480.0,0.00019178,2]
[382302010,1756570249130,-480.0,0.00019178,2]
[382302012,1756570249140,-480.0,0.00019178,2]
[382302014,1756570249150,-231.34557866,0.00019178,2]
[382302016,1756570249160,-556.41,0.00019178,2]
[382302018,1756570249170,-480.0,0.00019178,2]
[382302020,1756570249182,-613.82,0.00019178,2]
[382302022,1756570249191,-480.0,0.00019178,2]
[382302024,1756570249201,-1429.78,0.00019178,2]
[382302026,1756570249211,-884.14,0.00019178,2]
[382302028,1756570249221,-843.65,0.00019178,2]
[382302030,1756570249230,-480.0,0.00019178,2]
[382302032,1756570249239,-1347.14,0.00019178,2]
[382302034,1756570249249,-480.0,0.00019178,2]
[382302036,1756570249258,-521.65,0.00019178,2]
[382302038,1756570249268,-2398.84,0.00019178,2]
[382302040,1756570249278,-729.28,0.00019178,2]
[382302042,1756570249288,-245.91164685,0.00019178,2]
[382302044,1756570249297,-480.0,0.00019178,2]
[382302046,1756570249307,-480.0,0.00019178,2]
[382302048,1756570249316,-480.0,0.00019178,2]
[382302050,1756570249325,-641.03,0.00019178,2]
[382302052,1756570249335,-480.0,0.00019178,2]
[382302054,1756570249344,-490.05486214,0.00019178,2]
[382302056,1756570249354,-1517.83,0.00019178,2]
[382302058,1756570249364,-487.62,0.00019178,2]
[382302060,1756570249374,-757.44,0.00019178,2]
[382302062,1756570249384,-2089.95,0.00019178,2]
[382302064,1756570249394,-1513.41,0.00019178,2]
[382302066,1756570249403,-151.0,0.00019178,2]
[382302068,1756570249413,-1686.69,0.00019178,2]
[382302070,1756570249422,-480.0,0.00019178,2]
[382302072,1756570249432,-480.0,0.00019178,2]
[382302074,1756570249442,-480.0,0.00019178,2]
[382302076,1756570249452,-1072.25,0.00019178,2]
[382302078,1756570249462,-480.0,0.00019178,2]
[382302080,1756570249473,-1426.97,0.00019178,2]
[382302082,1756570249482,-5888.86,0.00019178,2]
[382302096,1756570249626,-688.15,0.00019178,2]
[382302097,1756570249644,-480.0,0.00019178,2]
[382302098,1756570249654,-1614.92,0.00019178,2]
[382302099,1756570249663,-480.0,0.00019178,2]
[382302100,1756570249672,-596.82,0.00019178,2]
[382302101,1756570249683,-768.95,0.00019178,2]
[382302102,1756570249693,-480.0,0.00019178,2]
[382302103,1756570249703,-480.0,0.00019178,2]
[382302104,1756570249714,-5875.77,0.00019178,2]
[382302105,1756570249723,-480.0,0.00019178,2]
[382302106,1756570249732,-480.0,0.00019178,2]
[382302107,1756570249742,-480.0,0.00019178,2]
[382302108,1756570249751,-1750.52,0.00019178,2]
[382302110,1756570249761,-480.0,0.00019178,2]
[382302112,1756570249770,-1469.23,0.00019178,2]
[382302114,1756570249779,-744.61,0.00019178,2]
[382302116,1756570249789,-1657.9,0.00019178,2]
[382302118,1756570249799,-480.0,0.00019178,2]
[382302120,1756570249808,-480.0,0.00019178,2]
[382302122,1756570249818,-480.0,0.00019178,2]
[382302124,1756570249827,-480.0,0.00019178,2]
[382302126,1756570249837,-480.0,0.00019178,2]
[382302128,1756570249846,-767.53,0.00019178,2]
[382302130,1756570249855,-480.0,0.00019178,2]
[382302132,1756570249865,-480.0,0.00019178,2]
[382302134,1756570249875,-1551.01,0.00019178,2]
[382302136,1756570249884,-720.09,0.00019178,2]
[382302138,1756570249892,-540.12,0.00019178,2]
[382302140,1756570249900,-480.0,0.00019178,2]
[382302142,1756570249909,-441.92203505,0.00019178,2]
[382302241,1756570250853,-578.081465,0.00019,2]
[382302243,1756570250862,-198.695499,0.00019,2]
[382302245,1756570250872,-38.07796495,0.00019178,2]
[382302247,1756570250881,-1361.04,0.00019178,2]
[382302249,1756570250891,-480.0,0.00019178,2]
[382302251,1756570250900,-1622.82,0.00019178,2]
[382302253,1756570250910,-1958.91,0.00019178,2]
[382302255,1756570250919,-480.0,0.00019178,2]
[382302257,1756570250928,-520.36,0.00019178,2]
[382302259,1756570250938,-480.0,0.00019178,2]
[382302276,1756570251076,-480.0,0.00019178,2]
[382302278,1756570251110,-664.45,0.00019178,2]
[382302280,1756570251120,-480.0,0.00019178,2]
[382302282,1756570251129,-480.0,0.00019178,2]
[382302284,1756570251139,-480.0,0.00019178,2]
[382302286,1756570251148,-480.0,0.00019178,2]
[382302288,1756570251158,-288.25407104,0.00019178,2]
[382302340,1756570251654,-836.577427,0.00019,2]
[382302342,1756570251664,-191.74592896,0.00019178,2]
[382302344,1756570251672,-1157.24303094,0.00019178,2]
[382302382,1756570252027,-836.577427,0.00019,2]
[382302384,1756570252037,-668.68696906,0.00019178,2]
[382302386,1756570252046,-1668.8,0.00019178,2]
[382302388,1756570252056,-481.73040018,0.00019178,2]
[382302390,1756570252066,-806.73,0.00019178,2]
[382302392,1756570252075,-480.0,0.00019178,2]
[382302394,1756570252084,-480.0,0.00019178,2]
[382302396,1756570252094,-151.0,0.00019178,2]
[382302398,1756570252103,-2198.91,0.00019178,2]
[382302400,1756570252112,-480.0,0.00019178,2]
[382302402,1756570252122,-151.0,0.00019178,2]
[382302404,1756570252132,-280.410022,0.00019178,2]
[382302406,1756570252141,-404.79396198,0.00019178,2]
[382302408,1756570252151,-573.12,0.00019178,2]
[382302410,1756570252161,-1574.0,0.00019178,2]
[382302412,1756570252170,-940.48,0.00019178,2]
[382302414,1756570252180,-151.0,0.00019178,2]
[382302416,1756570252189,-151.0,0.00019178,2]
[382302418,1756570252199,-480.0,0.00019178,2]
[382302420,1756570252210,-151.0,0.00019178,2]
[382302422,1756570252219,-151.0,0.00019178,2]
[382302423,1756570252229,-480.0,0.00019178,2]
[382302424,1756570252240,-260.95639491,0.00019178,2]
[382302425,1756570252250,-480.0,0.00019178,2]
[382302426,1756570252260,-480.0,0.00019178,2]
[382302427,1756570252269,-480.0,0.00019178,2]
[382302428,1756570252279,-480.0,0.00019178,2]
[382302429,1756570252288,-488.71955561,0.00019178,2]
[382302430,1756570252298,-480.0,0.00019178,2]
[382302431,1756570252308,-480.0,0.00019178,2]
[382302432,1756570252318,-480.0,0.00019178,2]
[382302433,1756570252328,-1676.84,0.00019178,2]
[382302434,1756570252338,-480.0,0.00019178,2]
[382302435,1756570252348,-1708.14,0.00019178,2]
[382302436,1756570252357,-1013.39,0.00019178,2]
[382302437,1756570252367,-480.0,0.00019178,2]
[382302438,1756570252376,-480.0,0.00019178,2]
[382302439,1756570252386,-9977.78,0.00019178,2]
[382302440,1756570252394,-480.0,0.00019178,2]
[382302441,1756570252403,-4406.59,0.00019178,2]
[382302442,1756570252413,-913.38,0.00019178,2]
[382302443,1756570252422,-480.0,0.00019178,2]
[382302444,1756570252431,-480.0,0.00019178,2]
[382302445,1756570252440,-1482.75,0.00019178,2]
[382302446,1756570252450,-2113.8,0.00019178,2]
[382302447,1756570252459,-632.41,0.00019178,2]
[382302448,1756570252468,-480.0,0.00019178,2]
[382302449,1756570252478,-584.98,0.00019178,2]
[382302450,1756570252487,-508.07,0.00019178,2]
[382302451,1756570252497,-480.0,0.00019178,2]
[382302452,1756570252506,-480.0,0.00019178,2]
[382302453,1756570252515,-480.0,0.00019178,2]
[382302454,1756570252524,-480.0,0.00019178,2]
[382302455,1756570252534,-480.0,0.00019178,2]
[382302456,1756570252543,-579.075509,0.00019178,2]
[382302457,1756570252553,-579.075509,0.00019178,2]
[382302459,1756570252563,-579.075509,0.00019178,2]
[382302460,1756570252572,-480.0,0.00019178,2]
[382302461,1756570252582,-579.075509,0.00019178,2]
[382302462,1756570252591,-2363.69,0.00019178,2]
[382302463,1756570252600,-480.0,0.00019178,2]
[382302465,1756570252609,-480.0,0.00019178,2]
[382302467,1756570252618,-579.075509,0.00019178,2]
[382302469,1756570252628,-579.075509,0.00019178,2]
[382302471,1756570252641,-480.0,0.00019178,2]
[382302473,1756570252650,-1841.25,0.00019178,2]
[382302475,1756570252660,-579.075509,0.00019178,2]
[382302477,1756570252669,-480.0,0.00019178,2]
[382302480,1756570252682,-579.075509,0.00019178,2]
[382302482,1756570252697,-480.0,0.00019178,2]
[382302484,1756570252707,-579.075509,0.00019178,2]
[382302486,1756570252718,-579.075509,0.00019178,2]
[382302488,1756570252727,-579.075509,0.00019178,2]
[382302490,1756570252737,-892.29,0.00019178,2]
[382302491,1756570252747,-480.0,0.00019178,2]
[382302493,1756570252756,-579.075509,0.00019178,2]
[382302495,1756570252766,-2588.35,0.00019178,2]
[382302497,1756570252776,-579.075509,0.00019178,2]
[382302499,1756570252785,-579.075509,0.00019178,2]
[382302501,1756570252795,-579.075509,0.00019178,2]
[382302503,1756570252805,-579.075501,0.00019178,2]
[382302506,1756570252815,-151.0,0.00019178,2]
[382302526,1756570252998,-151.0,0.00019178,2]
[382302528,1756570253012,-151.0,0.00019178,2]
[382302530,1756570253022,-695.36,0.00019178,2]
[382302532,1756570253032,-151.0,0.00019178,2]
[382302534,1756570253042,-151.0,0.00019178,2]
[382302536,1756570253052,-480.0,0.00019178,2]
[382302538,1756570253062,-151.0,0.00019178,2]
[382302540,1756570253072,-291.155911,0.00019178,2]
[382302542,1756570253082,-480.0,0.00019178,2]
[382302544,1756570253092,-480.0,0.00019178,2]
[382302546,1756570253101,-480.0,0.00019178,2]
[382302548,1756570253111,-1881.66,0.00019178,2]
[382302550,1756570253120,-480.0,0.00019178,2]
[382302552,1756570253130,-500.0,0.00019178,2]
[382302554,1756570253139,-500.0,0.00019178,2]
[382302556,1756570253149,-151.0,0.00019178,2]
[382302558,1756570253158,-500.0,0.00019178,2]
[382302560,1756570253168,-151.0,0.00019178,2]
[382302562,1756570253177,-500.0,0.00019178,2]
[382302564,1756570253187,-151.0,0.00019178,2]
[382302566,1756570253196,-500.0,0.00019178,2]
[382302568,1756570253205,-480.0,0.00019178,2]
[382302570,1756570253215,-503.70511732,0.00019178,2]
[382302572,1756570253224,-480.0,0.00019178,2]
[382302573,1756570253234,-1653.79,0.00019178,2]
[382302576,1756570253243,-1036.85,0.00019178,2]
[382302578,1756570253254,-616.56405023,0.00019178,2]
[382302579,1756570253264,-2013.24,0.00019178,2]
[382302581,1756570253274,-500.0,0.00019178,2]
[382302584,1756570253284,-226.1162744,0.00019178,2]
[382302585,1756570253293,-151.0,0.00019178,2]
[382302587,1756570253303,-1421.34,0.00019178,2]
[382302589,1756570253312,-810.29,0.00019178,2]
[382302591,1756570253322,-480.0,0.00019178,2]
[382302593,1756570253332,-480.0,0.00019178,2]
[382302595,1756570253342,-480.0,0.00019178,2]
[382302597,1756570253351,-480.0,0.00019178,2]
[382302599,1756570253361,-151.0,0.00019178,2]
[382302601,1756570253371,-151.0,0.00019178,2]
[382302603,1756570253380,-480.0,0.00019178,2]
[382302605,1756570253390,-3825.97,0.00019178,2]
[382302607,1756570253399,-823.11055812,0.00019178,2]
[382303521,1756570319641,9161.88593584,0.00017921,2]
[382303522,1756570319672,10000.01,0.00017921,2]
[382303523,1756570319698,10000.01,0.00017921,2]
[382303524,1756570319730,340838.09406416,0.00017921,2]
[382303527,1756570454982,1139.30997964,0.00017919,2]
[382303528,1756570457784,230.04759915,0.00017478,2]
[382303529,1756570481892,370000.0,0.00017921,2]
[382303530,1756570497761,363.40497,0.00017757,2]
[382303532,1756570505679,407.42079208,0.00017919,2]
[382303533,1756570507123,694.035463,0.00013699,2]
[382303534,1756570625353,370000.0,0.00017921,2]
[382303535,1756570694127,198.0,0.00027397,120]
[382303536,1756570730817,322.20857295,0.00027397,120]
[382303538,1756570735077,356.49319307,0.00017918,2]
[382303539,1756570773198,481.0,0.00027397,120]
[382303540,1756570787515,286162.01605224,0.0001792,2]
[382303541,1756570787547,83837.98394776,0.0001792,2]
[382303542,1756570801508,846.98518876,0.00018002,2]
[382303544,1756570812710,500.0,0.00018008,2]
[382303545,1756570813177,151.0,0.00018008,2]
[382303546,1756570813364,500.0,0.00018008,2]
[382303547,1756570813878,151.0,0.00018008,2]
[382303548,1756570814025,500.0,0.00018008,2]
[382303549,1756570814512,151.0,0.00018008,2]
[382303550,1756570814546,151.0,0.00018008,2]
[382303551,1756570815153,151.0,0.00018008,2]